Workbook

Sheet 計算シート
A1: 年末調整 保険料控除額算出表
A3: 【一般の生命保険料】 | G3: 【個人年金保険料】
B5: 区分 | C5: 本年中に支払った 保険料等の額 | D5: 控除額 | H5: 区分 | I5: 本年中に支払った 保険料等の額 | J5: 控除額
B6: 新 | H6: 新
B11: 合計（Ａ） | C11: =SUM(C6:C10) -> 0 | D11: ① | E11: =IF(C11<=20000,C11,IF(C11>=80001,40000,IF(AND(C11>=20001,C11<=40000),ROUNDUP(C11/2+10000,0),IF(AND(C11>=40001,C11<=80000),ROUNDUP(C11/4+20000,0))))) -> 0 | H11: 合計（Ｄ） | I11: =SUM(I6:I10) -> 0 | J11: ④ | K11: =IF(I11<=20000,I11,IF(I11>=80001,40000,IF(AND(I11>=20001,I11<=40000),ROUNDUP(I11/2+10000,0),IF(AND(I11>=40001,I11<=80000),ROUNDUP(I11/4+20000,0))))) -> 0
B12: 旧 | H12: 旧
B17: 合計（Ｂ） | C17: =SUM(C12:C16) -> 0 | D17: ② | E17: =IF(C17<=25000,C17,IF(C17>=100001,50000,IF(AND(C17>=25001,C17<=50000),ROUNDUP(C17/2+12500,0),IF(AND(C17>=50001,C17<=100000),ROUNDUP(C17/4+25000,0))))) -> 0 | H17: 合計（Ｅ） | I17: =SUM(I12:I16) -> 0 | J17: ⑤ | K17: =IF(I17<=25000,I17,IF(I17>=100001,50000,IF(AND(I17>=25001,I17<=50000),ROUNDUP(I17/2+12500,0),IF(AND(I17>=50001,I17<=100000),ROUNDUP(I17/4+25000,0))))) -> 0
B18: 控除額計（①＋②） | D18: ③ | E18: =IF(E11+E17<=40000,E11+E17,IF(E11+E17>=40001,40000)) -> 0 | H18: 控除額計（④＋⑤） | J18: ⑥ | K18: =IF(K11+K17<=40000,K11+K17,IF(K11+K17>=40001,40000)) -> 0
B19: 控除決定額 | H19: 控除決定額 | J19: ハ | K19: =IF(K17>=K18,K17,IF(K17<K18,K18)) -> 0
A21: 【介護医療保険料】 | H21: 【生命保険料控除 合計】
B23: 区分 | H23: イロハ | I23: =IF(E19+E29+K19<=120000,E19+E29+K19,IF(E19+E29+K19>=120001,120000)) -> 0
B24: 新
H27: 【マクロ設定】
H28: 入力リセット：ｃｔｒｌ ＋ ｄ
B29: 合計（Ｃ） | C29: =SUM(C24:C28) -> 0 | D29: ロ | E29: =IF(C29<=20000,C29,IF(C29>=80001,40000,IF(AND(C29>=20001,C29<=40000),ROUNDUP(C29/2+10000,0),IF(AND(C29>=40001,C29<=80000),ROUNDUP(C29/4+20000,0))))) -> 0
H30: 入力箇所
A32: 【地震保険料控除】
B34: 区分 | C34: 本年中に支払った 保険料等の額 | D34: 控除額
B35: 地震
B38: 合計 | C38: =SUM(C35:C37) -> 0 | D38: Ｂ | E38: =IF(C38<=50000,C38,IF(C38>=50001,50000)) -> 0
B39: 旧長期
B42: 合計 | C42: =SUM(C39:C41) -> 0 | D42: Ｃ | E42: =IF(C42<=10000,C42,IF(AND(C42>=10001,C42<=20000),ROUNDUP(C42/2+5000,0),15000)) -> 0
B43: 控除額計（Ｂ＋Ｃ） | E43: =IF(E38+E42<=50000,E38+E42,IF(E38+E42>=50001,50000)) -> 0

Sheet 入力例
A1: 年末調整 保険料控除額算出表
A3: 【一般の生命保険料】 | G3: 【個人年金保険料】
B5: 区分 | C5: 本年中に支払った 保険料等の額 | D5: 控除額 | H5: 区分 | I5: 本年中に支払った 保険料等の額 | J5: 控除額
B6: 新 | C6: 58000 | H6: 新 | I6: 64250
B11: 合計（Ａ） | C11: =SUM(C6:C10) -> 58000 | D11: ① | E11: =IF(C11<=20000,C11,IF(C11>=80001,40000,IF(AND(C11>=20001,C11<=40000),ROUNDUP(C11/2+10000,0),IF(AND(C11>=40001,C11<=80000),ROUNDUP(C11/4+20000,0))))) -> 34500 | H11: 合計（Ｄ） | I11: =SUM(I6:I10) -> 64250 | J11: ④ | K11: =IF(I11<=20000,I11,IF(I11>=80001,40000,IF(AND(I11>=20001,I11<=40000),ROUNDUP(I11/2+10000,0),IF(AND(I11>=40001,I11<=80000),ROUNDUP(I11/4+20000,0))))) -> 36063
B12: 旧 | C12: 45000 | H12: 旧 | I12: 120000
B17: 合計（Ｂ） | C17: =SUM(C12:C16) -> 45000 | D17: ② | E17: =IF(C17<=25000,C17,IF(C17>=100001,50000,IF(AND(C17>=25001,C17<=50000),ROUNDUP(C17/2+12500,0),IF(AND(C17>=50001,C17<=100000),ROUNDUP(C17/4+25000,0))))) -> 35000 | H17: 合計（Ｅ） | I17: =SUM(I12:I16) -> 120000 | J17: ⑤ | K17: =IF(I17<=25000,I17,IF(I17>=100001,50000,IF(AND(I17>=25001,I17<=50000),ROUNDUP(I17/2+12500,0),IF(AND(I17>=50001,I17<=100000),ROUNDUP(I17/4+25000,0))))) -> 50000
B18: 控除額計（①＋②） | D18: ③ | E18: =IF(E11+E17<=40000,E11+E17,IF(E11+E17>=40001,40000)) -> 40000 | H18: 控除額計（④＋⑤） | J18: ⑥ | K18: =IF(K11+K17<=40000,K11+K17,IF(K11+K17>=40001,40000)) -> 40000
B19: 控除決定額 | D19: イ | E19: =IF(E17>=E18,E17,IF(E17<E18,E18)) -> 40000 | H19: 控除決定額 | J19: ハ | K19: =IF(K17>=K18,K17,IF(K17<K18,K18)) -> 50000
A21: 【介護医療保険料】 | H21: 【生命保険料控除 合計】
B23: 区分 | C23: 本年中に支払った 保険料等の額 | D23: 控除額 | H23: イロハ | I23: =IF(E19+E29+K19<=120000,E19+E29+K19,IF(E19+E29+K19>=120001,120000)) -> 120000
B24: 新 | C24: 58000
H27: 【マクロ設定】
H28: 入力リセット：ｃｔｒｌ ＋ ｄ
B29: 合計（Ｃ） | C29: =SUM(C24:C28) -> 58000 | D29: ロ | E29: =IF(C29<=20000,C29,IF(C29>=80001,40000,IF(AND(C29>=20001,C29<=40000),ROUNDUP(C29/2+10000,0),IF(AND(C29>=40001,C29<=80000),ROUNDUP(C29/4+20000,0))))) -> 34500
H30: 入力箇所
A32: 【地震保険料控除】
B34: 区分 | C34: 本年中に支払った 保険料等の額 | D34: 控除額
B35: 地震 | C35: 13850
B38: 合計 | C38: =SUM(C35:C37) -> 13850 | D38: Ｂ | E38: =IF(C38<=50000,C38,IF(C38>=50001,50000)) -> 13850
B39: 旧長期 | C39: 12549
B42: 合計 | C42: =SUM(C39:C41) -> 12549 | D42: Ｃ | E42: =IF(C42<=10000,C42,IF(AND(C42>=10001,C42<=20000),ROUNDUP(C42/2+5000,0),15000)) -> 11275
B43: 控除額計（Ｂ＋Ｃ） | E43: =IF(E38+E42<=50000,E38+E42,IF(E38+E42>=50001,50000)) -> 25125
